[Event "NOR-chT Eliteserien 2018-19"]
[Site "Norway"]
[Date "2019.01.11"]
[Round "4"]
[White "Aulin-Jansson, Joran"]
[Black "Skrondal, Inge Sandstad"]
[Result "0-1"]
[ECO "A37"]
[WhiteElo "2274"]
[BlackElo "2281"]
[Annotator "NA"]
[PlyCount "60"]
[EventDate "2018.11.02"]
[EventType "team-tourn"]
[EventCountry "NOR"]
[SourceTitle "playchess.com"]
[Source "ChessBase"]
[SourceQuality "1"]
[TimeControl "40/5400+30:1800+30"]

1. c4 {[%emt 0:00:00]} c5 {[%emt 0:00:05]} 2. Nc3 {[%emt 0:00:00]} g6 {[%emt 0:00:11]} 3. g3 {[%emt 0:00:32]} Bg7 {[%emt 0:00:05]} 4. Bg2 {[%emt 0:00:04]} Nc6 {[%emt 0:00:16]} 5. Nf3 {[%emt 0:01:07]} e6 {[%emt 0:03:45]} 6. d3 {[%emt 0:05:49]} Nge7 {[%emt 0:00:23]} 7. O-O {[%emt 0:08:09]} O-O {[%emt 0:00:50]} 8. h4 {[%emt 0:00:49]} h6 {[%emt 0:01:57]} 9. Bd2 {[%emt 0:03:18]} b6 {[%emt 0:01:30]} 10. a3 {[%emt 0:01:55]} Bb7 {[%emt 0:01:46]} 11. Qc1 {[%emt 0:01:14]} Kh7 {[%emt 0:00:12]} 12. Rb1 {[%emt 0:00:06]} d6 {[%emt 0:04:11]} 13. b4 {[%emt 0:00:34]} Qd7 {[%emt 0:00:40]} 14. Re1 {[%emt 0:04:12]} Rac8 {[%emt 0:08:06]} 15. e3 {[%emt 0:10:11]} Rfd8 {[%emt 0:08:48]} 16. Ne2 {[%emt 0:01:11]} Ne5 {[%emt 0:07:52]} 17. Nxe5 {[%emt 0:00:29]} dxe5 {[%emt 0:00:09]} 18. Bxb7 {[%emt 0:02:59]} Qxb7 {[%emt 0:00:02]} 19. bxc5 {[%emt 0:00:20]} Rxd3 {[%emt 0:03:23]} 20. cxb6 {[%emt 0:00:37]} axb6 {[%emt 0:01:24]} 21. Bb4 {[%emt 0:07:47]} Nf5 {[%emt 0:08:24]} 22. Qc2 {[%emt 0:02:53]} Rxe3 {[%emt 0:03:59]} 23. Qd2 {[%emt 0:05:41]} Re4 {[%emt 0:03:21]} 24. h5 {[%emt 0:04:55]} Rh4 {[%emt 0:06:31]} 25. hxg6+ {[%emt 0:00:08]} fxg6 {[%emt 0:00:06]} 26. f3 {[%emt 0:02:02]} Qxf3 {[%emt 0:08:49]} 27. gxh4 {[%emt 0:00:30]} Rxc4 {[%emt 0:00:07]} 28. Ng3 {[%emt 0:05:12]} Rg4 {[%emt 0:01:37]} 29. Qf2 {[%emt 0:00:11]} Rxg3+ {[%emt 0:00:06]} 30. Kf1 {[%emt 0:00:06]} Qg4 {[%emt 0:02:13]} 0-1

[Event "NOR-chT Eliteserien 2018-19"]
[Site "Norway"]
[Date "2019.01.11"]
[Round "4"]
[White "Andersen, Alf Roger"]
[Black "Hammerstad, Asmund"]
[Result "1-0"]
[ECO "A80"]
[WhiteElo "2256"]
[BlackElo "2207"]
[Annotator "ChessBase"]
[PlyCount "103"]
[EventDate "2018.11.02"]
[EventType "team-tourn"]
[EventCountry "NOR"]
[SourceTitle "playchess.com"]
[Source "ChessBase"]
[SourceQuality "1"]
[TimeControl "40/5400+30:1800+30"]

1. d4 {[%emt 0:00:00]} e6 {[%emt 0:00:00]} 2. Nf3 {[%emt 0:00:00]} f5 {[%emt 0:00:21]} 3. h3 {[%emt 0:01:04]} Nf6 {[%emt 0:00:28]} 4. g4 {[%emt 0:00:16]} d5 {[%emt 0:03:35]} 5. e3 {[%emt 0:11:38]} Bd6 {[%emt 0:01:47]} 6. Bd3 {[%emt 0:00:54]} O-O {[%emt 0:01:01]} 7. c4 {[%emt 0:05:13]} c6 {[%emt 0:04:42]} 8. Nc3 {[%emt 0:01:33]} Ne4 {[%emt 0:16:01]} 9. gxf5 {[%emt 0:03:13]} Bb4 {[%emt 0:06:32]} 10. Bd2 {[%emt 0:14:45]} Bxc3 {[%emt 0:01:26]} 11. Bxc3 {[%emt 0:03:19]} exf5 {[%emt 0:01:54]} 12. Qc2 {[%emt 0:06:31]} Be6 {[%emt 0:03:14]} 13. Bb4 {[%emt 0:13:25]} Re8 {[%emt 0:01:10]} 14. O-O-O {[%emt 0:02:27]} Na6 {[%emt 0:07:54]} 15. Be1 {[%emt 0:01:13]} dxc4 {[%emt 0:03:25]} 16. Bxc4 {[%emt 0:01:14]} Bd5 {[%emt 0:08:03]} 17. Ne5 {[%emt 0:03:01]} Bxc4 {[%emt 0:04:33]} 18. Qxc4+ {[%emt 0:00:30]} Qd5 {[%emt 0:00:08]} 19. Qxd5+ {[%emt 0:01:16]} cxd5 {[%emt 0:00:09]} 20. f3 {[%emt 0:01:28]} Rac8+ {[%emt 0:01:28]} 21. Kb1 {[%emt 0:00:20]} Nd6 {[%emt 0:00:20]} 22. Bd2 {[%emt 0:09:40]} Nc4 {[%emt 0:01:32]} 23. Nxc4 {[%emt 0:03:11]} Rxc4 {[%emt 0:01:49]} 24. Rc1 {[%emt 0:01:45]} Rec8 {[%emt 0:03:33]} 25. Rxc4 {[%emt 0:02:23]} Rxc4 {[%emt 0:00:13]} 26. Be1 {[%emt 0:04:31]} Kf7 {[%emt 0:01:07]} 27. h4 {[%emt 0:03:18]} Nc7 {[%emt 0:00:23]} 28. Bg3 {[%emt 0:01:41]} Ne6 {[%emt 0:00:07]} 29. Be5 {[%emt 0:00:24]} Nf8 {[%emt 0:02:22]} 30. Rg1 {[%emt 0:02:46]} Ng6 {[%emt 0:00:45]} 31. Rg5 {[%emt 0:01:05]} Nxh4 {[%emt 0:01:12]} 32. Rxg7+ {[%emt 0:00:51]} Kf8 {[%emt 0:03:11]} 33. Rxb7 {[%emt 0:00:57]} Nxf3 {[%emt 0:00:20]} 34. b3 {[%emt 0:00:24]} Rc3 {[%emt 0:00:37]} 35. Bf4 {[%emt 0:00:37]} Kg8 {[%emt 0:02:13]} 36. Bh6 {[%emt 0:00:27]} Rc6 {[%emt 0:00:20]} 37. Bf4 {[%emt 0:00:39]} Ne1 {[%emt 0:00:31]} 38. Rxa7 {[%emt 0:00:27]} Nd3 {[%emt 0:00:19]} 39. Rc7 {[%emt 0:00:28]} Rg6 {[%emt 0:01:05]} 40. a4 {[%emt 0:00:33]} Rg2 {[%emt 0:00:35]} 41. Rc3 {[%emt 0:30:29]} Rb2+ {[%emt 0:33:21]} 42. Ka1 {[%emt 0:00:00]} Rd2 {[%emt 0:00:00]} 43. Bd6 {[%emt 0:00:00]} Kf7 {[%emt 0:00:00]} 44. a5 {[%emt 0:00:00]} Ke6 {[%emt 0:00:00]} 45. Ba3 {[%emt 0:00:00]} Ne1 {[%emt 0:00:00]} 46. Kb1 {[%emt 0:00:00]} Rg2 {[%emt 0:00:00]} 47. Rc6+ {[%emt 0:00:00]} Kf7 {[%emt 0:00:00]} 48. Rc7+ {[%emt 0:00:00]} Ke6 {[%emt 0:00:00]} 49. a6 {[%emt 0:00:00]} h5 {[%emt 0:00:00]} 50. a7 {[%emt 0:00:00]} Rg8 {[%emt 0:00:00]} 51. Rb7 {[%emt 0:00:00]} Ra8 {[%emt 0:00:00]} 52. Bc5 {[%emt 0:00:00]} 1-0

[Event "NOR-chT Eliteserien 2018-19"]
[Site "Norway"]
[Date "2019.01.11"]
[Round "4"]
[White "Royset, Pal"]
[Black "Storme, Isak"]
[Result "0-1"]
[ECO "B22"]
[WhiteElo "2165"]
[BlackElo "2319"]
[Annotator "NA"]
[PlyCount "66"]
[EventDate "2018.11.02"]
[EventType "team-tourn"]
[EventCountry "NOR"]
[SourceTitle "playchess.com"]
[Source "ChessBase"]
[SourceQuality "1"]
[TimeControl "40/5400+30:1800+30"]

1. e4 {[%emt 1:13:18]} c5 {[%emt 1:08:12]} 2. c3 {[%emt 0:00:30]} Nf6 {[%emt 0:00:30]} 3. e5 {[%emt 0:00:30]} Nd5 {[%emt 0:00:30]} 4. Nf3 {[%emt 0:00:30]} Nc6 {[%emt 0:00:30]} 5. d4 {[%emt 0:00:30]} cxd4 {[%emt 0:00:30]} 6. cxd4 {[%emt 0:00:30]} d6 {[%emt 0:00:30]} 7. Bc4 {[%emt 0:00:30]} Nb6 {[%emt 0:00:30]} 8. Bb3 {[%emt 0:00:30]} dxe5 {[%emt 0:00:30]} 9. d5 {[%emt 0:00:30]} Na5 {[%emt 0:00:30]} 10. Nc3 {[%emt 0:00:30] B22: Sicilian: 2 c3} Bg4 {[%emt 0:00:30]} 11. Qd3 $146 {[%emt 0:00:30]} ({Predecessor:} 11. Be3 Nxb3 12. Qxb3 Bxf3 13. gxf3 g6 14. Nb5 Bg7 15. d6 O-O 16. O-O-O exd6 17. Rxd6 Qh4 {1-0 (39) Lugovskoy,M (2428)-Maletin,P (2586) Sochi 2018}) 11... Nxb3 {[%emt 0:00:30]} 12. axb3 {[%emt 0:00:30]} f6 {[%emt 0:00:30]} 13. Be3 {[%emt 0:00:30]} g6 {[%emt 0:00:30]} 14. Nh4 {[%emt 0:00:30]} Kf7 {[%emt 0:00:30]} 15. O-O {[%emt 0:00:30]} Bg7 {[%emt 0:00:30]} 16. f4 {[%emt 0:00:30]} exf4 {[%emt 0:00:30]} 17. Rxf4 {[%emt 0:00:30]} Bd7 {[%emt 0:00:30]} 18. Nf3 {[%emt 0:00:30]} Rf8 {[%emt 0:00:30]} 19. Ng5+ {[%emt 0:00:30]} Kg8 {[%emt 0:00:30]} 20. Nxh7 {[%emt 0:00:30]} Kxh7 {[%emt 0:00:30]} 21. Rh4+ {[%emt 0:00:30]} Kg8 {[%emt 0:00:30]} 22. Qxg6 {[%emt 0:00:30]} Qe8 {[%emt 0:00:30]} 23. Qh7+ {[%emt 0:00:30]} Kf7 {[%emt 0:00:30]} 24. Ne4 {[%emt 0:00:30]} Nxd5 {[%emt 0:00:30]} 25. Qh5+ {[%emt 0:00:30]} Kg8 {[%emt 0:00:30]} 26. Qxd5+ {[%emt 0:00:30]} e6 {[%emt 0:00:13]} 27. Qxb7 {[%emt 0:00:30]} Rb8 $2 {[%emt 0:01:00]} (27... Bc6 $14 28. Qc7 Bxe4 29. Rxe4 f5) 28. Qxa7 {[%emt 0:00:39]} (28. Qc7 $18 {and the rest is easy.} f5 29. Bh6 (29. Rxa7 Rxb3 30. Nd6 Qe7 $16)) 28... Bc6 {[%emt 0:03:23]} 29. Rg4 {[%emt 0:02:04]} Rb7 {[%emt 0:01:08]} 30. Nd6 {[%emt 0:00:19]} Qh5 {[%emt 0:07:10]} 31. Rxg7+ $19 {[%emt 0:01:13]} (31. Qd4 $18 Rd7 32. Qf4) 31... Rxg7 {[%emt 0:00:34]} 32. Qxg7+ {[%emt 0:00:18]} Kxg7 {[%emt 0:00:16]} 33. Ra7+ {[%emt 0:00:12]} Kg8 {[%emt 0:00:36]} 0-1

[Event "NOR-chT Eliteserien 2018-19"]
[Site "Norway"]
[Date "2019.01.11"]
[Round "4"]
[White "Diesen, Bruce"]
[Black "Lahlum, Hans Olav"]
[Result "1-0"]
[ECO "C19"]
[WhiteElo "2159"]
[BlackElo "2122"]
[Annotator "NA"]
[PlyCount "81"]
[EventDate "2018.11.02"]
[EventType "team-tourn"]
[EventCountry "NOR"]
[SourceTitle "playchess.com"]
[Source "ChessBase"]
[SourceQuality "1"]
[TimeControl "40/5400+30:1800+30"]

1. e4 {[%emt 0:00:00]} e6 {[%emt 0:00:00]} 2. d4 {[%emt 0:00:00]} d5 {[%emt 0:00:00]} 3. Nc3 {[%emt 0:00:05]} Bb4 {[%emt 0:00:00]} 4. e5 {[%emt 0:00:12]} c5 {[%emt 0:00:00]} 5. a3 {[%emt 0:00:07]} Bxc3+ {[%emt 0:00:02]} 6. bxc3 {[%emt 0:00:06]} Ne7 {[%emt 0:00:04]} 7. Nf3 {[%emt 0:01:20]} Qc7 {[%emt 0:00:23]} 8. a4 {[%emt 0:01:29]} b6 {[%emt 0:06:44]} 9. Bb5+ {[%emt 0:01:57]} Bd7 {[%emt 0:00:45]} 10. Bd3 {[%emt 0:00:29]} Nbc6 {[%emt 0:01:12]} 11. O-O {[%emt 0:00:35]} c4 {[%emt 0:06:21]} 12. Be2 {[%emt 0:00:36]} f6 {[%emt 0:00:22]} 13. exf6 {[%emt 0:08:04]} gxf6 {[%emt 0:00:11]} 14. Re1 {[%emt 0:00:50]} O-O-O {[%emt 0:03:19]} 15. Bf1 {[%emt 0:05:16]} Rhg8 {[%emt 0:04:15]} 16. g3 {[%emt 0:12:17]} Ng6 {[%emt 0:05:16]} 17. Bg2 {[%emt 0:04:42]} Kb8 {[%emt 0:11:16]} 18. Bh6 {[%emt 0:08:30]} Bc8 {[%emt 0:01:43]} 19. h4 {[%emt 0:09:29]} Qf7 {[%emt 0:03:24]} 20. Qd2 {[%emt 0:02:12]} Ka8 {[%emt 0:03:21]} 21. Re2 {[%emt 0:07:05]} Rge8 {[%emt 0:05:01]} 22. Rae1 {[%emt 0:01:39]} Bd7 {[%emt 0:08:15]} 23. Bf4 {[%emt 0:01:55]} Bc8 {[%emt 0:06:31]} 24. Kh2 {[%emt 0:04:43]} Nce7 {[%emt 0:04:13]} 25. a5 {[%emt 0:03:30]} Nxf4 {[%emt 0:03:20]} 26. Qxf4 {[%emt 0:00:22]} Ng6 {[%emt 0:00:40]} 27. Qh6 {[%emt 0:00:42]} b5 {[%emt 0:01:42]} 28. Kg1 {[%emt 0:04:49]} a6 {[%emt 0:02:40]} 29. Nd2 {[%emt 0:05:35]} Ne7 {[%emt 0:02:19]} 30. Bf3 {[%emt 0:03:27]} Nf5 {[%emt 0:03:17]} 31. Qf4 {[%emt 0:00:38]} Kb7 {[%emt 0:03:46]} 32. Nxc4 {[%emt 0:05:50]} e5 {[%emt 0:03:58]} 33. dxe5 {[%emt 0:00:09]} bxc4 {[%emt 0:00:26]} 34. Rb1+ {[%emt 0:04:35]} Ka7 {[%emt 0:01:27]} 35. g4 {[%emt 0:01:19]} fxe5 {[%emt 0:00:41]} 36. Rxe5 {[%emt 0:00:43]} Rxe5 {[%emt 0:08:46]} 37. Qxe5 {[%emt 0:00:02]} Bb7 {[%emt 0:01:13]} 38. gxf5 {[%emt 0:00:20]} Rg8+ {[%emt 0:00:42]} 39. Kf1 {[%emt 0:00:11]} Re8 {[%emt 0:01:10]} 40. Qd4+ {[%emt 0:00:14]} Kb8 {[%emt 0:00:41]} 41. Bxd5 {[%emt 0:31:26]} 1-0

[Event "NOR-chT Eliteserien 2018-19"]
[Site "Norway"]
[Date "2019.01.11"]
[Round "4"]
[White "Lundeby, Oyvind Andersen"]
[Black "Stokke, Kjetil"]
[Result "1/2-1/2"]
[ECO "A38"]
[WhiteElo "2152"]
[BlackElo "2334"]
[Annotator "NA"]
[PlyCount "92"]
[EventDate "2018.11.02"]
[EventType "team-tourn"]
[EventCountry "NOR"]
[SourceTitle "playchess.com"]
[Source "ChessBase"]
[SourceQuality "1"]
[TimeControl "40/5400+30:1800+30"]

1. b3 {[%emt 0:00:00]} g6 {[%emt 0:00:17]} 2. Bb2 {[%emt 0:00:00]} Nf6 {[%emt 0:00:03]} 3. Nf3 {[%emt 0:00:09]} Bg7 {[%emt 0:00:07]} 4. g3 {[%emt 0:00:19]} c5 {[%emt 0:00:44]} 5. c4 {[%emt 0:01:14]} O-O {[%emt 0:01:56]} 6. Nc3 {[%emt 0:03:53]} Nc6 {[%emt 0:04:08]} 7. Bg2 {[%emt 0:02:39]} e5 {[%emt 0:00:56]} 8. O-O {[%emt 0:02:21]} d6 {[%emt 0:02:40]} 9. d3 {[%emt 0:01:19]} Rb8 {[%emt 0:00:36]} 10. Nd2 {[%emt 0:01:57] A38: Symmetrical English vs ...g6: 4 Bg2 Bg7 5 Nf3 Nf6} a6 {[%emt 0:00:38]} 11. Nde4 {[%emt 0:04:40]} (11. a3 Bg4 12. h3 Bd7 13. b4 cxb4 14. axb4 Nxb4 15. Ba3 a5 16. Rb1 b5 17. Nxb5 d5 {½-½ (30) Artemiev,V (2691)-Grischuk,A (2772) Huaian 2017}) 11... Be6 {[%emt 0:09:00]} 12. Nxf6+ $146 {[%emt 0:01:11]} ({Predecessor:} 12. h3 h6 {½-½ (12) Vlahovic,B (2340)-Stanojevic,B (2312) Kac 2012}) 12... Bxf6 {[%emt 0:00:35]} 13. Nd5 {[%emt 0:02:49]} Bg7 {[%emt 0:01:28]} 14. e3 {[%emt 0:04:20]} b5 {[%emt 0:02:52]} 15. Qd2 {[%emt 0:06:45]} Ne7 {[%emt 0:05:23]} 16. Nxe7+ {[%emt 0:02:11]} Qxe7 {[%emt 0:00:02]} 17. Rac1 {[%emt 0:11:49]} Rfd8 {[%emt 0:04:44]} 18. e4 {[%emt 0:04:51]} a5 {[%emt 0:04:51]} 19. f4 {[%emt 0:04:31]} exf4 {[%emt 0:11:46]} 20. Bxg7 {[%emt 0:00:54]} Kxg7 {[%emt 0:00:06]} 21. Rxf4 {[%emt 0:06:31]} h6 {[%emt 0:06:22]} 22. Rcf1 {[%emt 0:04:00]} bxc4 {[%emt 0:09:58]} 23. bxc4 {[%emt 0:01:33]} Qg5 {[%emt 0:01:05]} 24. Qxa5 {[%emt 0:02:03]} Rd7 {[%emt 0:02:44]} 25. Qc3+ {[%emt 0:03:41]} Qe5 {[%emt 0:00:12]} 26. Rc1 {[%emt 0:01:30]} Ra7 {[%emt 0:01:29]} 27. Qxe5+ {[%emt 0:02:30]} dxe5 {[%emt 0:00:09]} 28. Rf2 {[%emt 0:00:06]} Ra3 {[%emt 0:00:27]} 29. Rd2 {[%emt 0:01:07]} Rd8 {[%emt 0:04:16]} 30. Bf1 {[%emt 0:01:36]} f5 {[%emt 0:01:30]} 31. exf5 {[%emt 0:01:52]} gxf5 {[%emt 0:04:27]} (31... Bxf5 $11 32. Re1 e4) 32. Re2 {[%emt 0:02:25]} Kf6 {[%emt 0:05:50]} 33. Rce1 {[%emt 0:00:47]} Rdxd3 {[%emt 0:01:31]} 34. Rxe5 {[%emt 0:00:53]} Rd6 {[%emt 0:00:12]} 35. Rxc5 {[%emt 0:02:24]} Rxa2 {[%emt 0:00:08]} 36. Rce5 {[%emt 0:04:09]} Bd7 {[%emt 0:01:49]} 37. Rd5 {[%emt 0:02:54]} (37. c5 $14 Ra5 38. Rxf5+ Bxf5 39. cxd6) 37... Rxd5 {[%emt 0:00:19]} 38. cxd5 {[%emt 0:00:02]} Rd2 {[%emt 0:00:21]} 39. Bg2 {[%emt 0:00:23]} h5 {[%emt 0:05:43]} 40. h4 {[%emt 0:03:50]} Rd4 {[%emt 0:02:20]} 41. Re3 {[%emt 0:37:02]} f4 {[%emt 0:31:39]} 42. Rf3 {[%emt 0:00:25]} Ke5 {[%emt 0:01:40]} 43. Rxf4 {[%emt 0:01:06]} Rxf4 {[%emt 0:00:06]} 44. gxf4+ {[%emt 0:00:04]} Kxf4 {[%emt 0:00:05]} 45. Kh2 {[%emt 0:00:59]} Ke5 $11 {[%emt 0:00:06]} 46. Kg3 {[%emt 0:00:08]} Be6 {[%emt 0:00:34]} 1/2-1/2

[Event "NOR-chT Eliteserien 2018-19"]
[Site "Norway"]
[Date "2019.01.11"]
[Round "4"]
[White "Mikalsen, Harald"]
[Black "Nordquelle, Daniel"]
[Result "1-0"]
[ECO "C01"]
[WhiteElo "2006"]
[BlackElo "2235"]
[Annotator "NA"]
[PlyCount "53"]
[EventDate "2018.11.02"]
[EventType "team-tourn"]
[EventCountry "NOR"]
[SourceTitle "playchess.com"]
[Source "ChessBase"]
[SourceQuality "1"]
[TimeControl "40/5400+30:1800+30"]

1. e4 {[%emt 0:00:00]} e6 {[%emt 0:04:21]} 2. d4 {[%emt 0:01:52]} d5 {[%emt 0:00:00]} 3. exd5 {[%emt 0:03:46]} exd5 {[%emt 0:00:00]} 4. Bd3 {[%emt 0:00:10]} Bd6 {[%emt 0:00:00]} 5. c3 {[%emt 0:07:39]} Ne7 {[%emt 0:00:20]} 6. Qh5 {[%emt 0:10:44] C01: French: Exchange Variation} (6. Ne2 O-O 7. O-O Bf5 8. Bf4 c6 9. Bxd6 Qxd6 10. Bxf5 Nxf5 {½-½ (10) Drazic,S (2426)-Petakov,U (2326) Novi Sad 2017}) 6... Be6 {[%emt 0:12:07]} 7. Nf3 {[%emt 0:08:04]} Ng6 {[%emt 0:17:44]} (7... Nbc6 $11 {keeps the balance.}) 8. Ng5 {[%emt 0:11:06]} Qf6 $146 {[%emt 0:12:19]} ({Predecessor:} 8... Qd7 9. Nxe6 Qxe6+ 10. Qe2 Qxe2+ 11. Bxe2 O-O 12. O-O Re8 13. Bd3 Nd7 {0-1 (44) Schefczik,R (1922)-Cordes,M (1921) Ruhrgebiet 2005}) 9. Nxh7 {[%emt 0:09:28]} Qe7 {[%emt 0:04:15]} 10. O-O {[%emt 0:07:29]} Nd7 {[%emt 0:02:52]} 11. Bxg6 {[%emt 0:11:13]} fxg6 {[%emt 0:08:00]} 12. Qxg6+ {[%emt 0:02:07]} Bf7 {[%emt 0:00:14]} 13. Qxg7 {[%emt 0:02:46]} O-O-O {[%emt 0:01:14]} 14. Bg5 {[%emt 0:00:45]} Qe2 {[%emt 0:08:30]} 15. Bxd8 {[%emt 0:06:43]} Qh5 {[%emt 0:02:01]} 16. h4 {[%emt 0:04:21]} Rg8 {[%emt 0:10:34]} 17. Nf6 {[%emt 0:03:33] [#]} Qxh4 $4 {[%emt 0:00:22]} (17... Nxf6 $1 $19 18. Qxg8 (18. Bxf6 Rxg7 19. Bxg7 Qe2 $19) (18. Qxf6 {is a self mate.} Rxg2+ 19. Kxg2 Qg4+ 20. Kh1 Qh3+ 21. Kg1 Qh2#) 18... Nxg8) 18. Qh7 {[%emt 0:01:16]} Qxh7 {[%emt 0:10:10]} 19. Nxh7 {[%emt 0:00:06]} Kxd8 {[%emt 0:00:10]} 20. f4 {[%emt 0:00:17]} Bg6 {[%emt 0:00:18]} 21. Ng5 $18 {[%emt 0:00:20]} Nf6 {[%emt 0:00:08]} 22. g3 {[%emt 0:01:51]} Nh5 {[%emt 0:02:58]} 23. Kf2 {[%emt 0:01:58]} Bf5 {[%emt 0:02:11]} 24. Nf7+ {[%emt 0:00:53]} Kd7 {[%emt 0:00:08]} 25. Nh6 {[%emt 0:01:32]} Rxg3 {[%emt 0:01:05]} 26. Nxf5 {[%emt 0:00:23]} Rg4 {[%emt 0:00:27]} 27. Nxd6 {[%emt 0:00:27]} 1-0